bitfinex/quotes_BTCUSD_20241024
["timestamp","ask_amount","ask_price","bid_price","bid_amount"]
[1729801219110,0.01375767,68184.0,68183.0,1.00595389]
[1729801219336,0.01375767,68184.0,68183.0,0.94026743]
[1729801219549,0.01375767,68184.0,68183.0,0.77862719]
[1729801219903,0.01375767,68184.0,68183.0,0.84428751]
[1729801220335,0.01375767,68184.0,68183.0,0.77862719]
[1729801220540,4e-05,68191.0,68190.0,0.146649]
[1729801220743,4e-05,68191.0,68190.0,0.44868542]
[1729801220945,4e-05,68191.0,68190.0,0.44575281]
[1729801222531,4e-05,68191.0,68190.0,0.29715281]
[1729801224432,4e-05,68191.0,68190.0,0.37215281]
[1729801224846,4e-05,68191.0,68190.0,0.47215281]
[1729801225041,4e-05,68191.0,68190.0,0.37215281]
[1729801225275,4e-05,68191.0,68190.0,0.52615281]
[1729801227137,4e-05,68191.0,68190.0,0.52815281]
[1729801227291,4e-05,68191.0,68190.0,0.52615281]
[1729801232297,0.000866,68191.0,68190.0,0.52615281]
[1729801233131,0.000866,68191.0,68190.0,0.62615281]
[1729801234711,0.000866,68191.0,68190.0,0.62815281]
[1729801235367,0.000866,68191.0,68190.0,0.66988867]
[1729801235579,0.000866,68191.0,68190.0,0.62815281]
[1729801237267,0.000866,68191.0,68190.0,0.62815221]
[1729801240285,0.000866,68191.0,68190.0,0.73059635]
[1729801242074,0.000866,68191.0,68190.0,0.74059635]
[1729801242278,0.000866,68191.0,68190.0,0.73059635]
[1729801242480,0.000866,68191.0,68190.0,0.74059635]
[1729801243320,0.000866,68191.0,68190.0,0.73059635]
[1729801243538,0.000866,68191.0,68190.0,0.74059635]
[1729801244334,0.000826,68203.0,68193.0,0.002]
[1729801244535,0.000826,68203.0,68202.0,0.246623]
[1729801244714,0.000826,68203.0,68202.0,0.39712681]
[1729801245119,0.10327014,68203.0,68202.0,0.15050381]
[1729801245439,0.10327014,68203.0,68202.0,0.29712681]
[1729801245643,0.11185375,68203.0,68202.0,0.29712681]
[1729801246622,0.00940961,68203.0,68202.0,0.61825323]
[1729801246810,0.00940961,68203.0,68202.0,0.39712681]
[1729801247066,0.000826,68203.0,68202.0,0.61825323]
[1729801247245,0.000826,68203.0,68202.0,0.49957095]
[1729801248450,0.000826,68203.0,68202.0,0.39712681]
[1729801250420,0.000826,68203.0,68202.0,0.40658276]
[1729801251297,0.000826,68203.0,68202.0,0.70850918]
[1729801251451,0.000826,68203.0,68202.0,0.48738276]
[1729801252068,0.000826,68203.0,68202.0,0.63708276]
[1729801252483,0.12541147,68220.0,68214.0,0.1]
[1729801252713,0.00890404,68219.0,68215.0,0.15050381]
[1729801253908,0.14863779,68219.0,68215.0,0.15050381]
[1729801254118,0.00890235,68218.0,68215.0,0.15050381]
[1729801254729,0.00890235,68218.0,68217.0,0.29709481]
[1729801255130,0.02292064,68221.0,68220.0,0.146584]
[1729801255362,0.02292064,68221.0,68220.0,0.29708781]
[1729801255547,0.03182691,68221.0,68220.0,0.15050381]
[1729801255748,0.03182691,68221.0,68220.0,0.29708781]
[1729801256427,0.03182691,68221.0,68220.0,0.15050381]
[1729801256635,0.00890627,68221.0,68220.0,0.15050381]
[1729801257601,0.00890627,68221.0,68220.0,0.29708781]
[1729801259195,0.0055657,68221.0,68220.0,0.29708781]
[1729801260764,0.00801026,68221.0,68220.0,0.15050381]
[1729801261170,0.00801026,68221.0,68220.0,0.29708781]
[1729801261591,0.14863779,68222.0,68220.0,0.29708781]
[1729801261811,0.14863779,68222.0,68220.0,0.146584]
[1729801261812,0.00828262,68221.0,68220.0,0.146584]
[1729801262889,0.00828262,68221.0,68220.0,0.29708781]
[1729801263313,0.00828262,68221.0,68220.0,0.15050381]
[1729801263584,0.14863779,68222.0,68220.0,0.15050381]
[1729801263799,0.14863779,68222.0,68221.0,0.15050381]
[1729801265085,0.15963692,68222.0,68221.0,0.15050381]
[1729801265733,0.01099913,68222.0,68221.0,0.29708581]
[1729801267954,0.01099913,68222.0,68221.0,0.30001712]
[1729801268385,0.01182513,68222.0,68221.0,0.30001712]
[1729801269251,0.01182513,68222.0,68221.0,0.40001712]
[1729801269498,0.01182513,68222.0,68221.0,0.63938581]
[1729801269714,0.01182513,68222.0,68221.0,0.68304801]
[1729801269954,0.01182513,68222.0,68221.0,0.63938581]
[1729801270401,0.01182513,68222.0,68221.0,0.9482623]
[1729801270623,0.01182513,68222.0,68221.0,0.9712623]
[1729801270848,0.01182513,68222.0,68221.0,0.89751311]
[1729801271070,0.01182513,68222.0,68221.0,0.97129194]
[1729801271335,0.01182513,68222.0,68221.0,1.05851177]
[1729801272500,0.000826,68222.0,68221.0,0.97129194]
[1729801272720,0.000826,68222.0,68221.0,1.08033308]
[1729801272921,0.000826,68222.0,68221.0,0.97129194]
[1729801273403,0.000826,68222.0,68221.0,1.0802906]
[1729801273879,0.000826,68222.0,68221.0,0.97129194]
[1729801274314,0.000826,68236.0,68235.0,0.146552]
[1729801274535,0.000826,68236.0,68235.0,0.63758649]
[1729801274741,0.000826,68236.0,68235.0,0.63465581]
[1729801275853,0.000826,68236.0,68235.0,0.96013408]
[1729801276078,0.000826,68236.0,68235.0,0.73700766]
[1729801276318,0.000826,68236.0,68235.0,0.62965581]
[1729801276543,0.000826,68236.0,68235.0,0.25050381]
[1729801276775,0.10317785,68236.0,68235.0,0.15050381]
[1729801277008,0.11365359,68236.0,68235.0,0.15050381]
[1729801277223,0.01130174,68236.0,68235.0,0.15050381]
[1729801278552,0.15986411,68236.0,68235.0,0.15050381]
[1729801279683,0.01130174,68236.0,68235.0,0.29705581]
[1729801279906,0.000826,68236.0,68235.0,0.29705581]
[1729801280127,0.000826,68236.0,68235.0,0.30205581]
[1729801281273,0.000826,68236.0,68235.0,0.29705581]
[1729801288949,0.000826,68236.0,68235.0,0.15050381]
[1729801288950,0.15806139,68236.0,68235.0,0.15050381]
[1729801289152,0.14938837,68236.0,68235.0,0.29705581]
[1729801289355,0.14938837,68236.0,68235.0,0.15050381]
[1729801289523,0.15806139,68236.0,68235.0,0.15050381]
[1729801289759,0.00949902,68236.0,68235.0,0.15050381]
[1729801290483,0.15806139,68236.0,68235.0,0.15050381]
[1729801290693,0.14938837,68236.0,68235.0,0.15050381]
[1729801290903,0.15659804,68236.0,68235.0,0.15050381]
[1729801295506,0.30314804,68236.0,68235.0,0.15050381]
[1729801298382,0.25696966,68236.0,68235.0,0.15050381]
[1729801300796,0.24975999,68236.0,68235.0,0.15050381]
[1729801307506,0.35214398,68236.0,68235.0,0.15050381]
[1729801310248,0.36589092,68236.0,68235.0,0.15050381]
[1729801310902,0.21934092,68236.0,68235.0,0.15050381]
[1729801311104,0.20559398,68236.0,68235.0,0.15050381]
[1729801311308,0.10320999,68236.0,68235.0,0.15050381]
[1729801315288,0.24975999,68236.0,68235.0,0.15050381]
[1729801316524,0.11695663,68236.0,68235.0,0.15050381]
[1729801316731,0.26350663,68236.0,68235.0,0.15050381]
[1729801317375,0.35214398,68236.0,68235.0,0.15050381]
[1729801317693,0.37688792,68236.0,68235.0,0.15050381]
[1729801318012,0.36589064,68236.0,68235.0,0.15050381]
[1729801318225,0.26350665,68236.0,68235.0,0.15050381]
[1729801318654,0.11695665,68236.0,68235.0,0.15050381]
[1729801318908,0.26350665,68236.0,68235.0,0.15050381]
[1729801319467,0.11695665,68236.0,68235.0,0.15050381]
[1729801319895,0.35214398,68236.0,68235.0,0.15050381]
[1729801320467,0.35214398,68236.0,68226.0,0.22112642]
[1729801320468,0.146578,68223.0,68220.0,0.00165]
[1729801320591,0.35134598,68223.0,68222.0,0.15215381]
[1729801320779,0.35801176,68223.0,68222.0,0.15215381]
[1729801321488,0.35801176,68223.0,68222.0,0.00165]
[1729801321615,0.36301176,68223.0,68222.0,0.00165]
[1729801323195,0.35634598,68223.0,68222.0,0.00165]
[1729801323406,0.161582,68221.0,68220.0,0.00165]
[1729801337216,0.151582,68221.0,68220.0,0.00165]
[1729801337467,0.005,68224.0,68220.0,0.15215381]
[1729801337678,0.10738399,68221.0,68220.0,0.00165]
[1729801338144,0.10238399,68224.0,68220.0,0.00165]
[1729801338369,0.10238399,68224.0,68222.0,0.0786]
[1729801338814,0.10238399,68224.0,68223.0,0.15050381]
[1729801339235,0.10238399,68227.0,68223.0,0.15050381]
[1729801339677,0.39552299,68227.0,68223.0,0.15050381]
[1729801339928,0.146571,68226.0,68223.0,0.15050381]
[1729801340130,0.10238399,68227.0,68223.0,0.15050381]
[1729801340341,0.10238399,68224.0,68223.0,0.15050381]
[1729801340958,0.10738399,68224.0,68223.0,0.15050381]
[1729801341586,0.26770839,68224.0,68223.0,0.15050381]
[1729801341819,0.25395899,68224.0,68223.0,0.15050381]
[1729801343609,0.26054053,68224.0,68223.0,0.15050381]
[1729801350751,0.25395899,68224.0,68223.0,0.15050381]
[1729801353231,0.35634298,68224.0,68223.0,0.15050381]
[1729801356667,0.25395899,68224.0,68223.0,0.15050381]
[1729801360812,0.25478399,68224.0,68223.0,0.15050381]
[1729801361215,0.24978399,68224.0,68223.0,0.15050381]
[1729801362740,0.24978399,68224.0,68223.0,0.30110381]
[1729801372317,0.26353402,68224.0,68223.0,0.30110381]
[1729801373689,0.24978399,68224.0,68223.0,0.30110381]
[1729801374732,0.24978399,68224.0,68222.0,0.00165]
[1729801374733,0.146578,68223.0,68222.0,0.00165]
[1729801374932,0.151578,68223.0,68222.0,0.00165]
[1729801377370,0.151578,68223.0,68222.0,0.000803]
[1729801377974,0.161578,68223.0,68222.0,0.000803]
[1729801378184,0.2945285,68223.0,68222.0,0.000803]
[1729801379526,0.2945285,68223.0,68209.0,0.22112642]
[1729801379527,0.005,68210.0,68209.0,0.22112642]
[1729801379777,0.45875797,68210.0,68209.0,0.22112642]
[1729801379992,0.35637398,68210.0,68209.0,0.22112642]
[1729801380209,0.35637398,68210.0,68201.0,0.37342642]
[1729801380210,0.146623,68202.0,68201.0,0.37342642]
[1729801380430,0.24900699,68202.0,68201.0,0.52393023]
[1729801381154,0.24900699,68202.0,68201.0,0.30280381]
[1729801384698,0.24900699,68202.0,68201.0,0.30445581]
[1729801401518,0.146623,68202.0,68201.0,0.30445581]
[1729801401730,0.24900699,68202.0,68201.0,0.30445581]
[1729801406690,0.10238399,68205.0,68202.0,0.0965]
[1729801406930,0.005,68206.0,68202.0,0.24700381]
[1729801406931,0.24900499,68203.0,68202.0,0.24700381]
[1729801409685,0.26000596,68203.0,68202.0,0.24700381]
[1729801410420,0.24900499,68203.0,68202.0,0.24700381]
[1729801410621,0.25999639,68203.0,68202.0,0.24700381]
[1729801410836,0.24900499,68203.0,68202.0,0.24700381]
[1729801419116,0.24900499,68203.0,68202.0,0.24865581]
[1729801422612,0.25999461,68203.0,68202.0,0.24865581]
[1729801423220,0.24900499,68203.0,68202.0,0.24865581]
[1729801441311,0.26275874,68203.0,68202.0,0.24865581]
[1729801441891,0.24900499,68203.0,68202.0,0.24865581]
[1729801447486,0.26275874,68203.0,68202.0,0.24865581]
[1729801448505,0.36514273,68203.0,68202.0,0.24865581]
[1729801448718,0.26275874,68203.0,68202.0,0.24865581]
[1729801451188,0.37014273,68203.0,68202.0,0.001652]
[1729801451426,0.146644,68192.0,68191.0,0.001652]
[1729801451652,0.19562979,68192.0,68191.0,0.001652]
[1729801451877,0.19718075,68192.0,68191.0,0.001652]
[1729801452101,0.15319583,68192.0,68191.0,0.001652]
[1729801459233,0.146644,68192.0,68191.0,0.001652]
[1729801462924,0.2419417,68192.0,68191.0,0.001652]
[1729801463125,0.146644,68192.0,68191.0,0.001652]
[1729801463486,0.151644,68192.0,68191.0,0.001652]
[1729801465131,0.156644,68192.0,68191.0,0.001652]
[1729801465344,0.161644,68192.0,68191.0,0.001652]
[1729801468989,0.26402799,68192.0,68191.0,0.001652]
[1729801470493,0.35932569,68192.0,68191.0,0.001652]
[1729801471126,0.26402799,68192.0,68191.0,0.001652]
[1729801474660,0.34162799,68192.0,68191.0,0.001652]
[1729801484541,0.37736582,68192.0,68191.0,0.001652]
[1729801484771,0.35537331,68192.0,68191.0,0.001652]
[1729801485436,0.34162799,68192.0,68191.0,0.001652]
[1729801485659,0.47305076,68192.0,68191.0,0.001652]
[1729801486503,0.27777334,68192.0,68191.0,0.001652]
[1729801486715,0.26402799,68192.0,68191.0,0.001652]
[1729801486865,0.161644,68192.0,68191.0,0.001652]
[1729801487073,0.161644,68192.0,68191.0,0.100452]
[1729801487276,0.17538936,68192.0,68191.0,0.100452]
[1729801487478,0.18913461,68192.0,68191.0,0.100452]
[1729801487965,0.20287985,68192.0,68191.0,0.100452]
[1729801488295,0.18913461,68192.0,68191.0,0.100452]
[1729801488712,0.20287985,68192.0,68191.0,0.100452]
[1729801492115,0.14667,68180.0,68179.0,0.29732642]
[1729801492341,0.35143798,68180.0,68179.0,0.29732642]
[1729801492811,0.35143798,68180.0,68179.0,0.1668]
[1729801498220,0.36243841,68180.0,68179.0,0.1668]
[1729801498424,0.37343884,68180.0,68179.0,0.1668]
[1729801499259,0.37343884,68180.0,68179.0,0.168452]
[1729801500476,0.27105485,68180.0,68179.0,0.168452]
[1729801500678,0.27105485,68180.0,68179.0,0.31895581]
[1729801501514,0.26005442,68180.0,68179.0,0.31895581]
[1729801501735,0.24905399,68180.0,68179.0,0.31895581]
[1729801501935,0.2600541,68180.0,68179.0,0.31895581]
[1729801503961,0.36243809,68180.0,68179.0,0.31895581]
[1729801504093,0.35143798,68180.0,68179.0,0.31895581]
[1729801505764,0.36244265,68180.0,68179.0,0.31895581]
[1729801505976,0.36244265,68180.0,68179.0,0.168452]
[1729801506154,0.26005866,68180.0,68179.0,0.168452]
[1729801506362,0.15767467,68180.0,68179.0,0.168452]
[1729801506570,0.26005866,68180.0,68179.0,0.168452]
[1729801510624,0.27106347,68180.0,68179.0,0.168452]
[1729801510850,0.37344746,68180.0,68179.0,0.168452]
[1729801512974,0.27106347,68180.0,68179.0,0.168452]
[1729801513138,0.2600588,68180.0,68179.0,0.168452]
[1729801513757,0.24905399,68180.0,68179.0,0.168452]
[1729801515236,0.35143798,68180.0,68179.0,0.168452]
[1729801516352,0.24905399,68180.0,68179.0,0.168452]
[1729801516977,0.26005771,68180.0,68179.0,0.168452]
[1729801517625,0.24905399,68180.0,68179.0,0.168452]
[1729801517826,0.35143798,68180.0,68179.0,0.168452]
[1729801518700,0.24905399,68180.0,68179.0,0.168452]
[1729801518913,0.35143798,68180.0,68179.0,0.168452]
[1729801520866,0.24905399,68180.0,68179.0,0.168452]
[1729801521095,0.2600581,68180.0,68179.0,0.168452]
[1729801524910,0.24905399,68180.0,68179.0,0.168452]
[1729801533020,0.24905399,68180.0,68179.0,0.31895581]
[1729801537277,0.14667,68180.0,68179.0,0.31895581]
[1729801537498,0.24905399,68180.0,68179.0,0.31895581]
[1729801537719,0.14667,68180.0,68179.0,0.31895581]
[1729801537971,0.24905399,68180.0,68179.0,0.31895581]
[1729801538432,0.14667,68180.0,68179.0,0.31895581]
[1729801538658,0.24905399,68180.0,68179.0,0.31895581]
[1729801542019,0.35143798,68180.0,68179.0,0.092252]
[1729801546369,0.49158168,68180.0,68179.0,0.092252]
[1729801546581,0.49158168,68180.0,68179.0,0.001652]
[1729801546582,0.42245,68180.0,68179.0,0.001652]
[1729801546814,0.42245,68180.0,68170.0,0.0923]
[1729801546815,0.66982197,68180.0,68170.0,0.0923]
[1729801547038,0.66982197,68180.0,68168.0,0.00166]
[1729801547039,0.161694,68169.0,68168.0,0.00166]
[1729801547485,0.36646198,68169.0,68168.0,0.00166]
[1729801550225,0.151694,68169.0,68168.0,0.00166]
[1729801550483,0.25407799,68169.0,68168.0,0.09676]
[1729801551548,0.35646198,68169.0,68168.0,0.09676]
[1729801552041,0.25407799,68169.0,68168.0,0.09676]
[1729801554858,0.35646198,68169.0,68168.0,0.09676]
[1729801555313,0.25407799,68169.0,68168.0,0.09676]
[1729801556365,0.2678244,68169.0,68168.0,0.09676]
[1729801556805,0.25407799,68169.0,68168.0,0.09676]
[1729801560142,0.35646198,68169.0,68168.0,0.09676]
[1729801561229,0.25407799,68169.0,68168.0,0.09676]
[1729801562970,0.151694,68169.0,68168.0,0.09676]
[1729801563189,0.25407799,68169.0,68168.0,0.17246]
[1729801565379,0.35407799,68169.0,68168.0,0.17246]
[1729801565863,0.45646198,68169.0,68168.0,0.09676]
[1729801566319,0.35407799,68169.0,68168.0,0.09676]
[1729801566537,0.45646198,68169.0,68168.0,0.09676]
[1729801567271,0.59210573,68169.0,68168.0,0.09676]
[1729801567919,0.45646198,68169.0,68168.0,0.09676]
[1729801568763,0.46146198,68169.0,68168.0,0.09676]
[1729801569233,0.46646198,68169.0,68168.0,0.00166]
[1729801569476,0.46646198,68169.0,68158.0,0.29822642]
[1729801569477,0.146715,68159.0,68158.0,0.31842642]
[1729801569939,0.35148298,68159.0,68158.0,0.31842642]
[1729801570180,0.14672,68157.0,68153.0,0.001658]
[1729801570420,0.15172,68157.0,68153.0,0.001658]
[1729801570667,0.35648798,68157.0,68153.0,0.001658]
[1729801572654,0.25410399,68157.0,68153.0,0.001658]
[1729801573153,0.26786878,68157.0,68153.0,0.001658]
[1729801573866,0.25410399,68157.0,68153.0,0.001658]
[1729801574285,0.35648798,68157.0,68153.0,0.001658]
[1729801574750,0.25410399,68157.0,68153.0,0.001658]
[1729801575885,0.14672,68157.0,68156.0,0.32285581]
[1729801576103,0.24910399,68157.0,68156.0,0.32285581]
[1729801578412,0.24910399,68157.0,68156.0,0.1707]
[1729801580705,0.24910399,68157.0,68156.0,0.0933]
[1729801581159,0.24910399,68157.0,68156.0,0.094952]
[1729801581386,0.24910399,68157.0,68156.0,0.001652]
[1729801581387,0.58092638,68157.0,68156.0,0.001652]
[1729801581630,0.60392638,68157.0,68156.0,0.001652]
[1729801582093,0.6176903,68157.0,68156.0,0.001652]
[1729801582330,0.5032519,68157.0,68156.0,0.001652]
[1729801583261,0.37786791,68157.0,68156.0,0.001652]
[1729801583500,0.37786791,68157.0,68156.0,0.094952]
[1729801585452,0.4802519,68157.0,68156.0,0.094952]
[1729801586547,0.36786791,68157.0,68156.0,0.094952]
[1729801586769,0.37786791,68157.0,68156.0,0.094952]
[1729801587669,0.27548392,68157.0,68156.0,0.094952]
[1729801587904,0.37786791,68157.0,68156.0,0.094952]
[1729801588335,0.02876392,68157.0,68156.0,0.094952]
[1729801588551,0.23114791,68157.0,68156.0,0.094952]
[1729801588998,0.37786791,68157.0,68156.0,0.094952]
[1729801589881,0.36786791,68157.0,68156.0,0.094952]
[1729801590367,0.37286791,68157.0,68156.0,0.094952]
[1729801590576,0.36286791,68157.0,68156.0,0.094952]
[1729801590790,0.22114791,68157.0,68156.0,0.094952]
[1729801591308,0.01376392,68157.0,68156.0,0.094952]
[1729801591520,0.11614791,68157.0,68156.0,0.094952]
[1729801592390,0.10238399,68157.0,68156.0,0.094952]
[1729801592624,0.10238399,68157.0,68156.0,0.24545581]
[1729801593308,0.01101035,68157.0,68156.0,0.32545581]
[1729801593554,8.477e-05,68159.0,68157.0,0.0947]
[1729801593789,8.477e-05,68159.0,68158.0,0.15050381]
[1729801594016,8.477e-05,68159.0,68158.0,0.24520381]
[1729801596996,8.477e-05,68159.0,68158.0,0.32570381]
[1729801600104,0.14679977,68159.0,68158.0,0.32570381]
[1729801603224,8.477e-05,68159.0,68158.0,0.32570381]
[1729801603671,0.14679977,68159.0,68158.0,0.32570381]
[1729801605709,0.14762577,68159.0,68158.0,0.32570381]
[1729801606130,0.15863552,68159.0,68158.0,0.32570381]
[1729801609841,0.14762577,68159.0,68158.0,0.32570381]
[1729801613341,0.15863548,68159.0,68158.0,0.32570381]
[1729801613890,0.14762577,68159.0,68158.0,0.32570381]
[1729801617577,0.14762577,68159.0,68158.0,0.0947]
[1729801622730,0.15863573,68159.0,68158.0,0.0947]
[1729801624617,0.14762577,68159.0,68158.0,0.0947]
[1729801624827,0.00091077,68159.0,68158.0,0.46782081]
[1729801628966,0.00091077,68159.0,68158.0,0.32110381]
[1729801629471,0.00091077,68159.0,68158.0,0.46782081]
[1729801631097,0.0119199,68159.0,68158.0,0.46782081]
[1729801632978,0.00091077,68159.0,68158.0,0.46782081]
[1729801637356,0.00091077,68159.0,68158.0,0.51179621]
[1729801639179,0.00091077,68159.0,68158.0,0.36507921]
[1729801641551,0.00091077,68159.0,68158.0,0.51179621]
[1729801644737,0.00091077,68159.0,68158.0,0.46782081]
[1729801646525,0.00091077,68159.0,68158.0,0.32110381]
[1729801647404,0.0119199,68159.0,68158.0,0.32110381]
[1729801647712,0.0119199,68159.0,68158.0,0.46782081]
[1729801650285,0.00091077,68159.0,68158.0,0.46782081]
[1729801651192,0.00091077,68159.0,68158.0,0.63019053]
[1729801651405,0.00091077,68159.0,68158.0,0.71814133]
[1729801652323,0.00091077,68159.0,68158.0,0.63019053]
[1729801652752,0.00091077,68159.0,68158.0,0.71814133]
[1729801653504,0.00091077,68159.0,68158.0,0.57142433]
[1729801653686,0.00091077,68159.0,68158.0,0.48347353]
[1729801654119,0.00091077,68159.0,68158.0,0.57142433]
[1729801654328,0.01191887,68159.0,68158.0,0.63019053]
[1729801654828,0.01191887,68159.0,68158.0,0.46782081]
[1729801655024,0.01191887,68159.0,68158.0,0.63021664]
[1729801655228,0.01191887,68159.0,68158.0,0.71820253]
[1729801655384,0.01191887,68159.0,68158.0,0.63021664]
[1729801657054,0.00091077,68159.0,68158.0,0.63021664]
[1729801662159,0.00091077,68159.0,68158.0,0.71820253]
[1729801664717,0.00091077,68159.0,68158.0,0.71825486]
[1729801669596,0.00091077,68159.0,68158.0,0.71825291]
[1729801674461,0.00091077,68159.0,68158.0,0.71825345]
[1729801682968,0.00091077,68159.0,68158.0,0.71814464]
[1729801683215,0.00091077,68159.0,68158.0,0.71839123]
[1729801687316,0.00091077,68159.0,68158.0,0.63038119]
[1729801692439,0.00091077,68159.0,68158.0,0.74039374]
[1729801697543,0.00091077,68159.0,68158.0,0.63038119]
[1729801702341,0.00091077,68159.0,68158.0,0.63061265]
[1729801703992,0.14762577,68159.0,68158.0,0.49606228]
[1729801704219,0.14762577,68159.0,68158.0,0.13898367]
[1729801704489,0.14762577,68159.0,68158.0,0.09494659]
[1729801706935,0.15863547,68159.0,68158.0,0.09494659]
[1729801708076,0.14762577,68159.0,68158.0,0.09494659]
[1729801709448,0.15863542,68159.0,68158.0,0.09494659]
[1729801710148,0.15863542,68159.0,68156.0,0.001652]
[1729801710149,0.32382,68157.0,68156.0,0.001652]
[1729801710355,0.42685897,68157.0,68156.0,0.001652]
[1729801710559,0.45714205,68157.0,68156.0,0.001652]
[1729801710773,0.32882,68157.0,68156.0,0.001652]
[1729801711116,0.33882,68157.0,68156.0,0.001652]
[1729801711355,0.43120399,68157.0,68156.0,0.001652]
[1729801711663,0.53358798,68157.0,68156.0,0.001652]
[1729801711868,0.43120399,68157.0,68156.0,0.001652]
[1729801712056,0.55325809,68157.0,68156.0,0.001652]
[1729801713236,0.4508741,68157.0,68156.0,0.001652]
[1729801714786,0.55325809,68157.0,68156.0,0.001652]
[1729801714987,0.34849011,68157.0,68156.0,0.001652]
[1729801715112,0.55325809,68157.0,68156.0,0.001652]
[1729801716384,0.59503114,68157.0,68156.0,0.001652]
[1729801718194,0.55325809,68157.0,68156.0,0.001652]
[1729801720966,0.27139011,68157.0,68156.0,0.001652]
[1729801721164,0.3737741,68157.0,68156.0,0.001652]
[1729801722016,0.24672,68157.0,68156.0,0.001652]
[1729801724082,0.34910399,68157.0,68156.0,0.001652]
[1729801724612,0.24672,68157.0,68156.0,0.001652]
[1729801725274,0.34910399,68157.0,68156.0,0.001652]
[1729801727052,0.35410399,68157.0,68156.0,0.001652]
[1729801727290,0.48663805,68157.0,68156.0,0.001652]
[1729801727934,0.35410399,68157.0,68156.0,0.001652]
[1729801729142,0.34910399,68157.0,68156.0,0.001652]
[1729801730830,0.36285568,68157.0,68156.0,0.001652]
[1729801731327,0.34910399,68157.0,68156.0,0.001652]
[1729801731701,0.151726,68154.0,68153.0,0.001658]
[1729801731989,0.45649398,68154.0,68153.0,0.001658]
[1729801734357,0.246726,68154.0,68153.0,0.001658]
[1729801734574,0.34910999,68154.0,68153.0,0.001658]
[1729801734788,0.34910999,68154.0,68153.0,0.101258]
[1729801736898,0.45149398,68154.0,68153.0,0.101258]
[1729801740129,0.34910999,68154.0,68153.0,0.101258]
[1729801741097,0.36286153,68154.0,68153.0,0.101258]
[1729801741302,0.34910999,68154.0,68153.0,0.101258]
[1729801742114,0.36011122,68154.0,68153.0,0.101258]
[1729801743178,0.34910999,68154.0,68153.0,0.101258]
[1729801746945,0.34910999,68154.0,68153.0,0.10088096]
[1729801748015,0.36285997,68154.0,68153.0,0.10088096]
[1729801751162,0.34910999,68154.0,68153.0,0.10088096]
[1729801752149,0.36287417,68154.0,68153.0,0.10088096]
[1729801754806,0.34910999,68154.0,68153.0,0.10088096]
[1729801755634,0.36287451,68154.0,68153.0,0.10088096]
[1729801757672,0.34910999,68154.0,68153.0,0.10088096]
[1729801761203,0.36012159,68154.0,68153.0,0.10088096]
[1729801762174,0.34910999,68154.0,68153.0,0.10088096]
[1729801763224,0.36012159,68154.0,68153.0,0.10088096]
[1729801763623,0.34910999,68154.0,68153.0,0.10088096]
[1729801766487,0.35076199,68154.0,68153.0,0.10088096]
[1729801767982,0.36177342,68154.0,68153.0,0.10088096]
[1729801768881,0.37553771,68154.0,68153.0,0.10088096]
[1729801769115,0.36177342,68154.0,68153.0,0.10088096]
[1729801771055,0.35076199,68154.0,68153.0,0.10088096]
[1729801774430,0.36452656,68154.0,68153.0,0.10088096]
[1729801774853,0.46691055,68154.0,68153.0,0.10088096]
[1729801775076,0.36452656,68154.0,68153.0,0.10088096]
[1729801775278,0.36452656,68154.0,68145.0,0.04401806]
[1729801775279,0.53946187,68154.0,68145.0,0.04401806]
[1729801775511,0.246765,68136.0,68135.0,0.22112642]
[1729801775749,0.34914899,68136.0,68135.0,0.22112642]
[1729801776002,0.39310066,68136.0,68135.0,0.22112642]
[1729801776232,0.146769,68134.0,68132.0,0.09969]
[1729801776480,0.24915299,68134.0,68132.0,9e-05]
[1729801776724,0.146769,68134.0,68132.0,9e-05]
[1729801776976,0.251771,68133.0,68132.0,9e-05]
[1729801777211,0.35415499,68133.0,68132.0,9e-05]
[1729801777697,0.40494337,68133.0,68132.0,9e-05]
[1729801778873,0.35415499,68133.0,68132.0,9e-05]
[1729801780201,0.36517111,68133.0,68132.0,9e-05]
[1729801782710,0.37618677,68133.0,68132.0,9e-05]
[1729801782916,0.38995634,68133.0,68132.0,9e-05]
[1729801783083,0.39821809,68133.0,68132.0,9e-05]
[1729801783292,0.37618677,68133.0,68132.0,9e-05]
[1729801783598,0.36517111,68133.0,68132.0,9e-05]
[1729801784109,0.35415499,68133.0,68132.0,9e-05]
[1729801788065,0.45653898,68133.0,68132.0,9e-05]
[1729801788291,0.146799,68120.0,68119.0,0.31777642]
[1729801788506,0.24918299,68120.0,68119.0,0.46828023]
[1729801788949,0.24918299,68120.0,68119.0,0.24715381]
[1729801790091,0.10238399,68120.0,68119.0,0.24715381]
[1729801790571,0.24918299,68120.0,68119.0,0.24715381]
[1729801792803,0.146799,68120.0,68119.0,0.24715381]
[1729801793071,0.293584,68124.0,68119.0,0.24715381]
[1729801793072,0.10238399,68123.0,68119.0,0.24715381]
[1729801793294,0.146798,68121.0,68119.0,0.24715381]
[1729801795548,0.01101476,68120.0,68119.0,0.24715381]
[1729801796016,0.146798,68121.0,68119.0,0.24715381]
[1729801796242,0.10238399,68126.0,68119.0,0.24715381]
[1729801796468,0.293577,68125.0,68119.0,0.24715381]
[1729801796695,0.146797,68122.0,68119.0,0.24715381]
[1729801796908,0.146797,68122.0,68119.0,0.39395481]
[1729801797615,0.146797,68122.0,68119.0,0.24715381]
[1729801798373,0.146797,68122.0,68119.0,0.39395481]
[1729801798613,0.16056545,68122.0,68119.0,0.24715381]
[1729801798823,0.01376845,68122.0,68119.0,0.39395381]
[1729801799045,0.01376845,68122.0,68117.0,0.0763]
[1729801799046,0.01376845,68122.0,68120.0,0.15050381]
[1729801799274,0.01376845,68122.0,68121.0,0.0931]
[1729801799493,0.01376845,68122.0,68121.0,0.24360381]
[1729801799936,0.01376845,68122.0,68121.0,0.46790081]
[1729801800190,0.01376845,68122.0,68121.0,0.32110381]
[1729801800626,0.01376845,68122.0,68121.0,0.46790081]
[1729801801119,0.02478284,68122.0,68121.0,0.32110381]
[1729801801785,0.03579723,68122.0,68121.0,0.32110381]
[1729801802014,0.02478284,68122.0,68121.0,0.32110381]
[1729801802252,0.02478284,68122.0,68121.0,0.5702848]
[1729801802522,0.02478284,68122.0,68121.0,0.46790081]
[1729801803017,0.02478284,68122.0,68121.0,0.32110381]
[1729801803249,0.17157784,68122.0,68121.0,0.32110381]
[1729801803718,0.02478284,68122.0,68121.0,0.32110381]
[1729801803947,0.18259202,68122.0,68121.0,0.32110381]
[1729801804406,0.17157784,68122.0,68121.0,0.32110381]
[1729801805077,0.02478284,68122.0,68121.0,0.32110381]
[1729801805285,0.17157784,68122.0,68121.0,0.32110381]
[1729801807553,0.17157784,68122.0,68121.0,0.31110381]
[1729801807765,0.18259219,68122.0,68121.0,0.31110381]